[Event "DSAM Bad Wildungen 2024"]
[Site "Bad Wildungen"]
[Date "2024.08.01"]
[Round "2.33"]
[White "Eitel, Luc"]
[Black "Lerch, Cornelia"]
[Result "0-1"]
[Annotator "NA RC"]
[ECO "B77"]
[WhiteElo "1711"]
[BlackElo "1847"]
[PlyCount "46"]
[EventDate "2024.07.31"]
[EventCountry "GER"]
[SourceTitle "playchess.com"]
[Source "ChessBase"]
[SourceQuality "1"]
[TimeControl "40/5400+30:900+30"]

1. e4 {[%emt 0:00:18]} c5 {[%emt 0:00:06]} 2. Nf3 {[%emt 0:00:08]} d6 {[%emt 0:00:09]} 3. d4 {[%emt 0:00:34]} cxd4 {[%emt 0:00:11]} 4. Nxd4 {[%emt 0:00:05]} Nf6 {[%emt 0:00:09]} 5. Nc3 {[%emt 0:00:13]} g6 {[%emt 0:00:09]} 6. Be3 {[%emt 0:01:22]} Bg7 {[%emt 0:00:09]} 7. f3 {[%emt 0:02:47]} O-O {[%emt 0:00:12]} 8. Qd2 {[%emt 0:00:29]} Nc6 {[%emt 0:00:09]} 9. Bc4 {[%emt 0:01:27]} Bd7 {[%emt 0:00:10]} 10. Nxc6 {[%emt 0:05:41]} Bxc6 {[%emt 0:00:44]} 11. Bh6 {[%emt 0:01:30]} Bxh6 {[%emt 0:04:46]} 12. Qxh6 {[%emt 0:00:19]} Qa5 {[%emt 0:06:25]} 13. Qd2 {[%emt 0:10:53]} Rac8 {[%emt 0:00:41]} 14. Bb3 {[%emt 0:05:35]} Qc5 {[%emt 0:09:36]} 15. Rd1 {[%emt 0:03:42]} b5 {[%emt 0:02:38]} 16. Nd5 {[%emt 0:02:33]} Nxd5 {[%emt 0:00:27]} 17. exd5 {[%emt 0:00:39]} Bd7 {[%emt 0:01:04]} 18. Qd4 {[%emt 0:02:28]} a5 {[%emt 0:02:35]} 19. c3 {[%emt 0:18:00]} a4 {[%emt 0:03:35]} 20. Bc2 {[%emt 0:02:51]} a3 {[%emt 0:01:50]} 21. Kd2 {[%emt 0:18:17]} axb2 {[%emt 0:00:56]} 22. Bb3 {[%emt 0:01:46]} Qxd4+ {[%emt 0:02:40]} 23. cxd4 {[%emt 0:03:23]} Bf5 {[%emt 0:00:20]} 0-1

[Event "DSAM Bad Wildungen 2024"]
[Site "Bad Wildungen"]
[Date "2024.08.01"]
[Round "2.34"]
[White "Merth, Philipp"]
[Black "Sviridov, Vitaliy"]
[Result "0-1"]
[Annotator "NA RC"]
[ECO "D05"]
[WhiteElo "1803"]
[BlackElo "1771"]
[PlyCount "86"]
[EventDate "2024.07.31"]
[EventCountry "GER"]
[SourceTitle "playchess.com"]
[Source "ChessBase"]
[SourceQuality "1"]
[TimeControl "40/5400+30:900+30"]

1. d4 {[%emt 0:00:01]} d5 {[%emt 0:00:04]} 2. Nf3 {[%emt 0:00:04]} e6 {[%emt 0:00:06]} 3. e3 {[%emt 0:00:07]} Nf6 {[%emt 0:00:04]} 4. Bd3 {[%emt 0:00:17]} Be7 {[%emt 0:00:16]} 5. b3 {[%emt 0:01:00]} O-O {[%emt 0:02:47]} 6. Bb2 {[%emt 0:00:14]} Nbd7 {[%emt 0:01:14]} 7. Nbd2 {[%emt 0:00:33]} Re8 {[%emt 0:00:58]} 8. O-O {[%emt 0:00:18]} Nf8 {[%emt 0:00:13]} 9. Ne5 {[%emt 0:00:44]} N6d7 {[%emt 0:00:39]} 10. f4 {[%emt 0:01:27]} f6 {[%emt 0:01:27]} 11. Nxd7 {[%emt 0:01:44]} Bxd7 {[%emt 0:00:18]} 12. c4 {[%emt 0:02:43]} f5 {[%emt 0:02:03]} 13. Nf3 {[%emt 0:01:27]} Ng6 {[%emt 0:04:56]} 14. Qc2 {[%emt 0:01:57]} Rf8 {[%emt 0:01:32]} 15. Rac1 {[%emt 0:00:55]} c6 {[%emt 0:00:10]} 16. Qe2 {[%emt 0:04:51]} Qe8 {[%emt 0:07:05]} 17. a4 {[%emt 0:06:14]} Nh8 {[%emt 0:03:36]} 18. Ne5 {[%emt 0:00:30]} Nf7 {[%emt 0:00:44]} 19. g4 {[%emt 0:02:08]} Nxe5 {[%emt 0:01:22]} 20. fxe5 {[%emt 0:02:03]} g6 {[%emt 0:02:45]} 21. Qg2 {[%emt 0:04:31]} Kh8 {[%emt 0:00:24]} 22. Qg3 {[%emt 0:09:19]} Rf7 {[%emt 0:04:14]} 23. Kh1 {[%emt 0:01:39]} Qf8 {[%emt 0:00:32]} 24. Rc2 {[%emt 0:03:44]} Rc8 {[%emt 0:03:59]} 25. g5 {[%emt 0:04:12]} a6 {[%emt 0:02:04]} 26. c5 {[%emt 0:03:02]} Kg7 {[%emt 0:02:26]} 27. h4 {[%emt 0:01:10]} Qd8 {[%emt 0:00:12]} 28. Bc3 {[%emt 0:01:15]} Ra8 {[%emt 0:02:10]} 29. a5 {[%emt 0:00:53]} Qh8 {[%emt 0:03:22]} 30. h5 {[%emt 0:07:36]} gxh5 {[%emt 0:11:31]} 31. Rg1 {[%emt 0:01:38]} Rg8 {[%emt 0:05:27]} 32. Rh2 {[%emt 0:03:22]} Kf8 {[%emt 0:03:38]} 33. Rxh5 {[%emt 0:00:15]} Rfg7 {[%emt 0:04:48]} 34. Qh4 {[%emt 0:03:00]} Be8 {[%emt 0:03:40]} 35. Rh6 {[%emt 0:01:11]} Bxg5 {[%emt 0:00:58]} 36. Rxg5 {[%emt 0:00:21]} Rxg5 {[%emt 0:00:15]} 37. Rxe6 {[%emt 0:05:25]} Rg1+ {[%emt 0:01:27]} 38. Kh2 {[%emt 0:00:06]} R8g2+ {[%emt 0:00:04]} 39. Kh3 {[%emt 0:00:54]} Rh1+ {[%emt 0:00:15]} 40. Kxg2 {[%emt 0:00:10]} Rxh4 {[%emt 0:00:02]} 41. Bxf5 {[%emt 0:15:33]} Qg7+ {[%emt 0:15:55]} 42. Kf3 {[%emt 0:00:11]} Bh5+ {[%emt 0:00:19]} 43. Kf2 {[%emt 0:01:10]} Rh2+ {[%emt 0:00:02]} 0-1

[Event "DSAM Bad Wildungen 2024"]
[Site "Bad Wildungen"]
[Date "2024.08.01"]
[Round "2.35"]
[White "Schmitt, Philipp"]
[Black "Ferneding, Conrad"]
[Result "1/2-1/2"]
[Annotator "RC"]
[ECO "A07"]
[WhiteElo "2170"]
[BlackElo "1780"]
[PlyCount "46"]
[EventDate "2024.07.31"]
[EventCountry "GER"]
[SourceTitle "playchess.com"]
[Source "ChessBase"]
[SourceQuality "1"]
[TimeControl "40/5400+30:900+30"]

1. Nf3 {[%emt 0:00:04]} Nc6 {[%emt 0:00:41]} 2. g3 {[%emt 0:00:10]} e5 {[%emt 0:00:28]} 3. d3 {[%emt 0:00:10]} d5 {[%emt 0:00:33]} 4. Bg2 {[%emt 0:00:22]} Nf6 {[%emt 0:01:01]} 5. O-O {[%emt 0:00:14]} Be7 {[%emt 0:00:12]} 6. Nbd2 {[%emt 0:00:24]} O-O {[%emt 0:00:26]} 7. e4 {[%emt 0:00:36]} Be6 {[%emt 0:00:59]} 8. Re1 {[%emt 0:00:30]} dxe4 {[%emt 0:02:25]} 9. Nxe4 {[%emt 0:00:28]} Nxe4 {[%emt 0:04:09]} 10. dxe4 {[%emt 0:00:19]} Bc5 {[%emt 0:01:19]} 11. Bg5 {[%emt 0:02:05]} f6 {[%emt 0:00:44]} 12. Be3 {[%emt 0:00:08]} Qe7 {[%emt 0:01:35]} 13. Qe2 {[%emt 0:01:55]} Rfd8 {[%emt 0:04:41]} 14. a3 {[%emt 0:02:25]} Nd4 {[%emt 0:02:34]} 15. Nxd4 {[%emt 0:01:19]} Bxd4 {[%emt 0:00:38]} 16. Bxd4 {[%emt 0:00:08]} Rxd4 {[%emt 0:00:23]} 17. Rad1 {[%emt 0:00:30]} Rad8 {[%emt 0:01:11]} 18. Rxd4 {[%emt 0:00:32]} Rxd4 {[%emt 0:00:08]} 19. Rd1 {[%emt 0:01:06]} Rxd1+ {[%emt 0:01:44]} 20. Qxd1 {[%emt 0:00:07]} Qd6 {[%emt 0:01:17]} 21. Qxd6 {[%emt 0:02:12]} cxd6 {[%emt 0:00:02]} 22. f4 {[%emt 0:00:25]} Kf7 {[%emt 0:01:14]} 23. Kf2 {[%emt 0:00:11]} b6 {[%emt 0:00:33]} 1/2-1/2

[Event "DSAM Bad Wildungen 2024"]
[Site "Bad Wildungen"]
[Date "2024.08.01"]
[Round "2.36"]
[White "Roth, Niklas"]
[Black "Krueger, Malte"]
[Result "0-1"]
[Annotator "NA RC"]
[ECO "A40"]
[WhiteElo "1749"]
[BlackElo "1739"]
[PlyCount "82"]
[EventDate "2024.07.31"]
[EventCountry "GER"]
[SourceTitle "playchess.com"]
[Source "ChessBase"]
[SourceQuality "1"]
[TimeControl "40/5400+30:900+30"]

1. d4 {[%emt 0:00:04]} c6 {[%emt 0:00:10]} 2. Bf4 {[%emt 0:01:12]} Qb6 {[%emt 0:00:38]} 3. b3 {[%emt 0:00:19]} Nf6 {[%emt 0:00:30]} 4. e3 {[%emt 0:02:19]} d5 {[%emt 0:01:56]} 5. Bd3 {[%emt 0:00:42]} Nbd7 {[%emt 0:03:38]} 6. Nf3 {[%emt 0:02:10]} Nh5 {[%emt 0:08:05]} 7. Bg3 {[%emt 0:01:22]} Ndf6 {[%emt 0:01:32]} 8. Be5 {[%emt 0:11:22]} Nd7 {[%emt 0:05:13]} 9. Nbd2 {[%emt 0:02:22]} Nxe5 {[%emt 0:03:08]} 10. Nxe5 {[%emt 0:00:16]} g6 {[%emt 0:01:48]} 11. h3 {[%emt 0:07:19]} Bg7 {[%emt 0:02:32]} 12. Ndf3 {[%emt 0:04:01]} Bxe5 {[%emt 0:10:14]} 13. Nxe5 {[%emt 0:00:15]} Ng7 {[%emt 0:03:06]} 14. O-O {[%emt 0:05:28]} Bf5 {[%emt 0:04:05]} 15. c4 {[%emt 0:08:48]} f6 {[%emt 0:06:32]} 16. Nf3 {[%emt 0:02:04]} O-O {[%emt 0:07:11]} 17. Ne1 {[%emt 0:08:01]} Rad8 {[%emt 0:03:18]} 18. Qc2 {[%emt 0:06:54]} e6 {[%emt 0:04:10]} 19. c5 {[%emt 0:05:29]} Qc7 {[%emt 0:00:57]} 20. f4 {[%emt 0:03:56]} e5 {[%emt 0:03:20]} 21. Bxf5 {[%emt 0:10:15]} Nxf5 {[%emt 0:00:40]} 22. Qd2 {[%emt 0:03:06]} Rde8 {[%emt 0:03:51]} 23. Nc2 {[%emt 0:05:05]} exd4 {[%emt 0:06:37]} 24. exd4 {[%emt 0:00:41]} Re4 {[%emt 0:02:07]} 25. Rae1 {[%emt 0:01:21]} Rfe8 {[%emt 0:00:38]} 26. Rxe4 {[%emt 0:00:48]} Rxe4 {[%emt 0:00:40]} 27. g4 {[%emt 0:03:56]} Ng7 {[%emt 0:01:39]} 28. Qh2 {[%emt 0:03:12]} f5 {[%emt 0:02:31]} 29. gxf5 {[%emt 0:00:38]} Nxf5 {[%emt 0:00:20]} 30. Re1 {[%emt 0:00:56]} Rxe1+ {[%emt 0:01:14]} 31. Nxe1 {[%emt 0:00:09]} Nxd4 {[%emt 0:00:39]} 32. Qf2 {[%emt 0:01:03]} Qxf4 {[%emt 0:00:37]} 33. Qxf4 {[%emt 0:00:45]} Ne2+ {[%emt 0:00:05]} 34. Kh2 {[%emt 0:00:14]} Nxf4 {[%emt 0:00:07]} 35. Kg3 {[%emt 0:00:45]} Ne6 {[%emt 0:00:13]} 36. Nd3 {[%emt 0:00:26]} Kf7 {[%emt 0:02:04]} 37. Ne5+ {[%emt 0:00:32]} Kf6 {[%emt 0:00:30]} 38. Nd3 {[%emt 0:00:40]} Kf5 {[%emt 0:00:27]} 39. b4 {[%emt 0:00:29]} Ke4 {[%emt 0:01:12]} 40. Nc1 {[%emt 0:00:31]} Ke3 {[%emt 0:00:33]} 41. a4 {[%emt 0:15:32]} a5 {[%emt 0:16:24]} 0-1

[Event "DSAM Bad Wildungen 2024"]
[Site "Bad Wildungen"]
[Date "2024.08.01"]
[Round "2.37"]
[White "Buntkowsky, Gerd"]
[Black "Doehn, Friedemann"]
[Result "0-1"]
[Annotator "NA RC"]
[ECO "C00"]
[WhiteElo "1662"]
[BlackElo "1776"]
[PlyCount "90"]
[EventDate "2024.07.31"]
[EventCountry "GER"]
[SourceTitle "playchess.com"]
[Source "ChessBase"]
[SourceQuality "1"]
[TimeControl "40/5400+30:900+30"]

1. e4 {[%emt 0:00:03]} e6 {[%emt 0:00:06]} 2. d3 {[%emt 0:01:09]} d5 {[%emt 0:00:05]} 3. Nd2 {[%emt 0:00:43]} Nf6 {[%emt 0:00:24]} 4. e5 {[%emt 0:02:16]} Nfd7 {[%emt 0:00:17]} 5. d4 {[%emt 0:01:11]} c5 {[%emt 0:00:11]} 6. c3 {[%emt 0:00:27]} Nc6 {[%emt 0:00:10]} 7. Ngf3 {[%emt 0:01:39]} cxd4 {[%emt 0:02:35]} 8. cxd4 {[%emt 0:00:36]} f6 {[%emt 0:00:49]} 9. Bb5 {[%emt 0:05:47]} Be7 {[%emt 0:02:30]} 10. O-O {[%emt 0:01:45]} O-O {[%emt 0:00:47]} 11. Re1 {[%emt 0:05:44]} fxe5 {[%emt 0:02:50]} 12. dxe5 {[%emt 0:05:38]} a6 {[%emt 0:01:03]} 13. Bxc6 {[%emt 0:01:15]} bxc6 {[%emt 0:00:28]} 14. Nb3 {[%emt 0:09:10]} c5 {[%emt 0:02:53]} 15. Qc2 {[%emt 0:05:40]} Bb7 {[%emt 0:05:16]} 16. Bd2 {[%emt 0:04:27]} a5 {[%emt 0:07:00]} 17. Nxa5 {[%emt 0:08:23]} Rxa5 {[%emt 0:02:35]} 18. Bxa5 {[%emt 0:00:11]} Qxa5 {[%emt 0:00:12]} 19. Re3 {[%emt 0:06:50]} d4 {[%emt 0:04:21]} 20. Ra3 {[%emt 0:01:16]} Qb6 {[%emt 0:00:49]} 21. Rb3 {[%emt 0:02:06]} Qc6 {[%emt 0:01:21]} 22. Re1 {[%emt 0:05:02]} c4 {[%emt 0:03:16]} 23. Rxb7 {[%emt 0:02:21]} Qxb7 {[%emt 0:03:01]} 24. Qxc4 {[%emt 0:00:41]} Qb6 {[%emt 0:22:26]} 25. Rd1 {[%emt 0:09:55]} Bc5 {[%emt 0:03:49]} 26. Nxd4 {[%emt 0:06:47]} Re8 {[%emt 0:20:32]} 27. Nf3 {[%emt 0:03:09]} Bxf2+ {[%emt 0:04:33]} 28. Kh1 {[%emt 0:00:06]} Nf8 {[%emt 0:00:45]} 29. b4 {[%emt 0:01:24]} Rd8 {[%emt 0:05:01]} 30. Rxd8 {[%emt 0:01:07]} Qxd8 {[%emt 0:00:07]} 31. Qf1 {[%emt 0:02:07]} Ba7 {[%emt 0:00:29]} 32. a4 {[%emt 0:00:54]} Nd7 {[%emt 0:01:48]} 33. Qd1 {[%emt 0:01:01]} Qc7 {[%emt 0:00:36]} 34. Qa1 {[%emt 0:01:00]} h6 {[%emt 0:00:59]} 35. h3 {[%emt 0:00:19]} Qc4 {[%emt 0:00:47]} 36. Qd1 {[%emt 0:00:49]} Nf8 {[%emt 0:01:44]} 37. b5 {[%emt 0:00:15]} Ng6 {[%emt 0:00:25]} 38. Qb1 {[%emt 0:00:32]} Nf4 {[%emt 0:00:37]} 39. b6 {[%emt 0:00:39]} Qe2 {[%emt 0:00:45]} 40. Ne1 {[%emt 0:03:34]} Bxb6 {[%emt 0:01:08]} 41. Qxb6 {[%emt 0:15:16]} Qxe1+ {[%emt 0:15:19]} 42. Kh2 {[%emt 0:00:52]} Qxe5 {[%emt 0:00:33]} 43. Qd8+ {[%emt 0:00:48]} Kh7 {[%emt 0:00:22]} 44. Qd2 {[%emt 0:00:23]} Ne2+ {[%emt 0:00:00]} 45. Kh1 {[%emt 0:00:00]} Qa1+ {[%emt 0:00:00]} 0-1

[Event "DSAM Bad Wildungen 2024"]
[Site "Bad Wildungen"]
[Date "2024.08.01"]
[Round "2.38"]
[White "Shanmuganathan, Adhav"]
[Black "Wallace, David A"]
[Result "1-0"]
[Annotator "RC"]
[ECO "B10"]
[WhiteElo "1659"]
[BlackElo "2116"]
[PlyCount "45"]
[EventDate "2024.07.31"]
[EventCountry "GER"]
[SourceTitle "playchess.com"]
[Source "ChessBase"]
[SourceQuality "1"]
[TimeControl "40/5400+30:900+30"]

1. e4 {[%emt 0:00:46]} c6 {[%emt 0:00:08]} 2. c4 {[%emt 0:00:06]} d5 {[%emt 0:00:22]} 3. cxd5 {[%emt 0:00:06]} cxd5 {[%emt 0:00:03]} 4. exd5 {[%emt 0:00:12]} Qxd5 {[%emt 0:00:03]} 5. Nc3 {[%emt 0:00:07]} Qa5 {[%emt 0:00:03]} 6. d4 {[%emt 0:00:40]} Nf6 {[%emt 0:00:18]} 7. Bc4 {[%emt 0:01:30]} Bf5 {[%emt 0:00:09]} 8. Qb3 {[%emt 0:00:15]} e6 {[%emt 0:01:23]} 9. Qxb7 {[%emt 0:00:30]} Be4 {[%emt 0:00:09]} 10. d5 {[%emt 0:02:34]} Bb4 {[%emt 0:02:59]} 11. Bb5+ {[%emt 0:00:26]} Nfd7 {[%emt 0:00:59]} 12. Bxd7+ {[%emt 0:00:28]} Nxd7 {[%emt 0:00:19]} 13. Qxa8+ {[%emt 0:00:15]} Ke7 {[%emt 0:00:01]} 14. d6+ {[%emt 0:01:05]} Kxd6 {[%emt 0:00:52]} 15. Qxe4 {[%emt 0:01:00]} Bxc3+ {[%emt 0:00:07]} 16. Kd1 {[%emt 0:00:52]} Bf6 {[%emt 0:02:38]} 17. Qd3+ {[%emt 0:01:01]} Ke7 {[%emt 0:00:15]} 18. Bd2 {[%emt 0:00:15]} Qb6 {[%emt 0:00:24]} 19. Qa3+ {[%emt 0:01:04]} Ke8 {[%emt 0:03:29]} 20. Rc1 {[%emt 0:00:43]} Qb7 {[%emt 0:02:16]} 21. Nf3 {[%emt 0:01:53]} Bxb2 {[%emt 0:00:12]} 22. Rb1 {[%emt 0:00:34]} Qxf3+ {[%emt 0:01:07]} 23. Qxf3 {[%emt 0:00:09]} 1-0

[Event "DSAM Bad Wildungen 2024"]
[Site "Bad Wildungen"]
[Date "2024.08.01"]
[Round "2.39"]
[White "Winkler, Frida"]
[Black "Geier, Jakob"]
[Result "0-1"]
[Annotator "NA RC"]
[ECO "B13"]
[WhiteElo "1588"]
[BlackElo "1664"]
[PlyCount "120"]
[EventDate "2024.07.31"]
[EventCountry "GER"]
[SourceTitle "playchess.com"]
[Source "ChessBase"]
[SourceQuality "1"]
[TimeControl "40/5400+30:900+30"]

1. e4 {[%emt 0:00:02]} c6 {[%emt 0:00:26]} 2. d4 {[%emt 0:00:10]} d5 {[%emt 0:00:01]} 3. exd5 {[%emt 0:00:17]} cxd5 {[%emt 0:00:02]} 4. Bd3 {[%emt 0:00:27]} Nc6 {[%emt 0:00:02]} 5. c3 {[%emt 0:00:15]} Nf6 {[%emt 0:00:16]} 6. h3 {[%emt 0:00:57]} e5 {[%emt 0:00:11]} 7. dxe5 {[%emt 0:04:49]} Nxe5 {[%emt 0:00:03]} 8. Bc2 {[%emt 0:00:14]} Bc5 {[%emt 0:04:59]} 9. Nf3 {[%emt 0:00:51]} Ng6 {[%emt 0:01:00]} 10. Qe2+ {[%emt 0:04:20]} Be7 {[%emt 0:08:20]} 11. O-O {[%emt 0:00:17]} O-O {[%emt 1:20:40]} 12. Nd4 {[%emt 0:05:31]} Re8 {[%emt 0:00:00]} 13. Be3 {[%emt 0:03:59]} Bc5 {[%emt 0:00:00]} 14. Qd1 {[%emt 0:01:12]} Ne5 {[%emt 0:00:00]} 15. Nf5 {[%emt 0:02:53]} Bxf5 {[%emt 0:00:00]} 16. Bxc5 {[%emt 0:00:17]} Ne4 {[%emt 0:00:00]} 17. Nd2 {[%emt 0:00:51]} Nxc5 {[%emt 0:00:00]} 18. Bxf5 {[%emt 1:12:08]} Qb6 {[%emt 0:00:00]} 19. b4 {[%emt 0:00:00]} Ne6 {[%emt 0:00:00]} 20. Bxh7+ {[%emt 0:01:00]} Kxh7 {[%emt 0:00:00]} 21. Qh5+ {[%emt 0:00:00]} Kg8 {[%emt 0:00:00]} 22. Qxe5 {[%emt 0:00:00]} Rad8 {[%emt 0:00:00]} 23. Nf3 {[%emt 0:00:00]} Nc7 {[%emt 0:00:00]} 24. Qd4 {[%emt 0:00:00]} Nb5 {[%emt 0:00:00]} 25. Qd3 {[%emt 0:00:00]} d4 {[%emt 0:00:00]} 26. c4 {[%emt 0:00:00]} Nc3 {[%emt 0:00:00]} 27. b5 {[%emt 0:00:00]} Qf6 {[%emt 0:00:00]} 28. Rfe1 {[%emt 0:00:00]} g6 {[%emt 0:00:00]} 29. Rxe8+ {[%emt 0:00:00]} Rxe8 {[%emt 0:00:00]} 30. Kh1 {[%emt 0:00:00]} Rd8 {[%emt 0:00:00]} 31. Nd2 {[%emt 0:00:00]} Qxf2 {[%emt 0:00:00]} 32. Rf1 {[%emt 0:00:00]} Qe3 {[%emt 0:00:00]} 33. Qc2 {[%emt 0:00:00]} Ne2 {[%emt 0:00:00]} 34. Rd1 {[%emt 0:00:00]} d3 {[%emt 0:01:07]} 35. Qb2 {[%emt 0:00:00]} Qf2 {[%emt 0:02:41]} 36. Qe5 {[%emt 0:00:00]} Nf4 {[%emt 0:02:37]} 37. Qe4 {[%emt 0:00:00]} Qe2 {[%emt 0:02:45]} 38. Qf3 {[%emt 0:00:00]} Re8 {[%emt 0:00:51]} 39. Qf1 {[%emt 0:00:00]} Nh5 {[%emt 0:02:44]} 40. Qf3 {[%emt 0:00:00]} Ng3+ {[%emt 0:01:08]} 41. Kh2 {[%emt 0:00:00]} Nf5 {[%emt 0:01:56]} 42. Kh1 {[%emt 0:00:00]} Ne3 {[%emt 0:03:01]} 43. Qxe2 {[%emt 0:00:00]} dxe2 {[%emt 0:00:12]} 44. Rc1 {[%emt 0:00:00]} Nc2 {[%emt 0:00:47]} 45. Nf3 {[%emt 0:00:00]} e1=Q+ {[%emt 0:00:27]} 46. Nxe1 {[%emt 0:00:00]} Rxe1+ {[%emt 0:00:10]} 47. Rxe1 {[%emt 0:00:00]} Nxe1 {[%emt 0:00:04]} 48. Kg1 {[%emt 0:00:00]} b6 {[%emt 0:00:11]} 49. Kf1 {[%emt 0:00:00]} Nc2 {[%emt 0:00:44]} 50. Ke2 {[%emt 0:00:00]} Na3 {[%emt 0:00:10]} 51. Kd3 {[%emt 0:00:00]} Kg7 {[%emt 0:00:14]} 52. Kc3 {[%emt 0:00:00]} Kf6 {[%emt 0:00:22]} 53. Kb3 {[%emt 0:00:00]} Nb1 {[%emt 0:00:09]} 54. Kc2 {[%emt 0:00:00]} Ke5 {[%emt 0:00:33]} 55. Kd3 {[%emt 0:00:00]} Kd6 {[%emt 0:02:33]} 56. Kd4 {[%emt 0:00:00]} Na3 {[%emt 0:01:02]} 57. h4 {[%emt 0:00:00]} f5 {[%emt 0:00:21]} 58. g3 {[%emt 0:00:00]} Nc2+ {[%emt 0:00:15]} 59. Kc3 {[%emt 0:00:00]} Ne3 {[%emt 0:00:17]} 60. Kd4 {[%emt 0:00:00]} Nf1 {[%emt 0:00:10]} 0-1

[Event "DSAM Bad Wildungen 2024"]
[Site "Bad Wildungen"]
[Date "2024.08.01"]
[Round "2.41"]
[White "Heutling, Thomas"]
[Black "Strodthoff, Felix"]
[Result "1/2-1/2"]
[Annotator "NA RC"]
[ECO "E61"]
[WhiteElo "1633"]
[BlackElo "1615"]
[PlyCount "80"]
[EventDate "2024.07.31"]
[EventCountry "GER"]
[SourceTitle "playchess.com"]
[Source "ChessBase"]
[SourceQuality "1"]
[TimeControl "40/5400+30:900+30"]

1. c4 {[%emt 0:00:09]} Nf6 {[%emt 0:00:08]} 2. Nc3 {[%emt 0:00:17]} g6 {[%emt 0:00:10]} 3. Nf3 {[%emt 0:01:08]} Bg7 {[%emt 0:00:06]} 4. d4 {[%emt 0:01:18]} d5 {[%emt 0:00:07]} 5. b3 {[%emt 0:01:43]} O-O {[%emt 0:00:23]} 6. e3 {[%emt 0:02:36]} c5 {[%emt 0:01:36]} 7. Be2 {[%emt 0:04:42]} cxd4 {[%emt 0:00:46]} 8. exd4 {[%emt 0:00:52]} Nc6 {[%emt 0:00:38]} 9. cxd5 {[%emt 0:03:41]} Nxd5 {[%emt 0:00:09]} 10. Bb2 {[%emt 0:01:20]} Qa5 {[%emt 0:00:42]} 11. Qd2 {[%emt 0:03:25]} Rd8 {[%emt 0:04:12]} 12. Bc4 {[%emt 0:02:07]} Nxc3 {[%emt 0:02:16]} 13. Bxc3 {[%emt 0:00:32]} Qc7 {[%emt 0:01:38]} 14. O-O {[%emt 0:01:51]} Bg4 {[%emt 0:01:35]} 15. Qe3 {[%emt 0:03:42]} e6 {[%emt 0:00:56]} 16. h3 {[%emt 0:00:31]} Bxf3 {[%emt 0:00:16]} 17. Qxf3 {[%emt 0:03:30]} Nxd4 {[%emt 0:00:23]} 18. Bxd4 {[%emt 0:00:59]} Bxd4 {[%emt 0:00:32]} 19. Rad1 {[%emt 0:00:40]} Bg7 {[%emt 0:00:24]} 20. Rxd8+ {[%emt 0:09:13]} Rxd8 {[%emt 0:00:12]} 21. Rd1 {[%emt 0:00:18]} b6 {[%emt 0:01:26]} 22. Rxd8+ {[%emt 0:02:07]} Qxd8 {[%emt 0:00:08]} 23. g3 {[%emt 0:03:23]} Bd4 {[%emt 0:00:57]} 24. Kg2 {[%emt 0:01:06]} a5 {[%emt 0:01:21]} 25. a4 {[%emt 0:00:37]} Qf6 {[%emt 0:00:13]} 26. Qxf6 {[%emt 0:05:27]} Bxf6 {[%emt 0:01:27]} 27. Kf3 {[%emt 0:00:39]} Bd4 {[%emt 0:00:08]} 28. Ke2 {[%emt 0:00:30]} Kg7 {[%emt 0:00:12]} 29. f3 {[%emt 0:00:23]} e5 {[%emt 0:00:10]} 30. Bd3 {[%emt 0:01:46]} f5 {[%emt 0:00:12]} 31. g4 {[%emt 0:03:12]} Kf6 {[%emt 0:00:30]} 32. h4 {[%emt 0:03:30]} fxg4 {[%emt 0:01:30]} 33. fxg4 {[%emt 0:00:45]} h5 {[%emt 0:00:33]} 34. g5+ {[%emt 0:01:06]} Kg7 {[%emt 0:00:12]} 35. Be4 {[%emt 0:02:01]} Bc5 {[%emt 0:00:12]} 36. Bd3 {[%emt 0:04:07]} Bg1 {[%emt 0:01:00]} 37. Kf3 {[%emt 0:01:33]} Bh2 {[%emt 0:00:10]} 38. Kg2 {[%emt 0:02:43]} Bf4 {[%emt 0:00:34]} 39. Kf3 {[%emt 0:00:32]} Bd2 {[%emt 0:00:14]} 40. Ke2 {[%emt 0:02:08]} Bf4 {[%emt 0:00:11]} 1/2-1/2

[Event "DSAM Bad Wildungen 2024"]
[Site "Bad Wildungen"]
[Date "2024.08.01"]
[Round "2.42"]
[White "Karlinder, Lovis Neo"]
[Black "Spielmann, Jan"]
[Result "1/2-1/2"]
[Annotator "NA RC"]
[ECO "C25"]
[WhiteElo "1659"]
[BlackElo "1667"]
[PlyCount "41"]
[EventDate "2024.07.31"]
[EventCountry "GER"]
[SourceTitle "playchess.com"]
[Source "ChessBase"]
[SourceQuality "1"]
[TimeControl "40/5400+30:900+30"]

1. e4 {[%emt 0:00:04]} e5 {[%emt 0:00:14]} 2. Nc3 {[%emt 0:00:05]} Nc6 {[%emt 0:01:20]} 3. Bc4 {[%emt 0:00:09]} Bc5 {[%emt 0:00:58]} 4. Qg4 {[%emt 0:00:11]} g6 {[%emt 0:08:57]} 5. Qf3 {[%emt 0:00:11]} Nf6 {[%emt 0:02:27]} 6. Nge2 {[%emt 0:00:12]} d6 {[%emt 0:01:34]} 7. h3 {[%emt 0:02:16]} Be6 {[%emt 0:26:48]} 8. Bb3 Bxb3 {[%emt 0:00:00]} 9. axb3 {[%emt 0:00:57]} O-O {[%emt 0:01:34]} 10. Na4 {[%emt 0:15:26]} Nd7 {[%emt 0:03:48]} 11. c3 {[%emt 0:06:36]} f5 {[%emt 0:01:42]} 12. exf5 {[%emt 0:10:01]} Rxf5 {[%emt 0:00:36]} 13. Qd5+ {[%emt 0:00:54]} Kh8 {[%emt 0:01:34]} 14. O-O {[%emt 0:02:48]} Qh4 {[%emt 0:08:07]} 15. Nxc5 {[%emt 0:02:33]} Nxc5 {[%emt 0:00:58]} 16. d3 {[%emt 0:13:53]} e4 {[%emt 0:11:44]} 17. Qc4 {[%emt 0:05:13]} Nxd3 {[%emt 0:03:45]} 18. f3 {[%emt 0:08:27]} Nxc1 {[%emt 0:12:09]} 19. Raxc1 {[%emt 0:01:29]} Re8 {[%emt 0:01:37]} 20. Nd4 {[%emt 0:05:31]} Nxd4 {[%emt 0:01:17]} 21. Qxd4+ {[%emt 0:00:40]} 1/2-1/2

[Event "DSAM Bad Wildungen 2024"]
[Site "Bad Wildungen"]
[Date "2024.08.01"]
[Round "2.43"]
[White "Klar, Ennio"]
[Black "Verges, Gerhard"]
[Result "1/2-1/2"]
[Annotator "NA RC"]
[ECO "C01"]
[WhiteElo "1781"]
[BlackElo "1692"]
[PlyCount "51"]
[EventDate "2024.07.31"]
[EventCountry "GER"]
[SourceTitle "playchess.com"]
[Source "ChessBase"]
[SourceQuality "1"]
[TimeControl "40/5400+30:900+30"]

1. e4 {[%emt 0:00:02]} e6 {[%emt 0:00:15]} 2. d4 {[%emt 0:00:04]} d5 {[%emt 0:00:17]} 3. exd5 {[%emt 0:00:06]} exd5 {[%emt 0:00:30]} 4. c4 {[%emt 0:01:09]} Nf6 {[%emt 0:00:49]} 5. Nc3 {[%emt 0:01:14]} Bb4 {[%emt 0:02:39]} 6. Nf3 {[%emt 0:06:11]} O-O {[%emt 0:01:25]} 7. Be2 {[%emt 0:03:43]} dxc4 {[%emt 0:02:34]} 8. O-O {[%emt 0:00:29]} Nc6 {[%emt 0:04:36]} 9. Bxc4 {[%emt 0:01:04]} Bg4 {[%emt 0:02:13]} 10. d5 {[%emt 0:02:53]} Ne5 {[%emt 0:02:45]} 11. Be2 {[%emt 0:00:49]} Nxf3+ {[%emt 0:03:40]} 12. Bxf3 {[%emt 0:00:05]} Bxf3 {[%emt 0:00:57]} 13. Qxf3 {[%emt 0:00:06]} Bxc3 {[%emt 0:01:40]} 14. bxc3 {[%emt 0:00:05]} Qxd5 {[%emt 0:00:46]} 15. Qg3 {[%emt 0:03:54]} c6 {[%emt 0:03:06]} 16. Bb2 {[%emt 0:03:24]} Qh5 {[%emt 0:05:24]} 17. Rab1 {[%emt 0:06:02]} Ne4 {[%emt 0:01:56]} 18. Qd3 {[%emt 0:01:33]} Qg6 {[%emt 0:02:51]} 19. Rfd1 {[%emt 0:00:48]} Nc5 {[%emt 0:03:24]} 20. Qd4 {[%emt 0:02:45]} Ne6 {[%emt 0:00:44]} 21. Qd7 {[%emt 0:04:41]} Rad8 {[%emt 0:06:08]} 22. Qxb7 {[%emt 0:01:37]} Rxd1+ {[%emt 0:05:27]} 23. Rxd1 {[%emt 0:00:13]} Rd8 {[%emt 0:01:22]} 24. Qb3 {[%emt 0:03:55]} Rxd1+ {[%emt 0:06:46]} 25. Qxd1 {[%emt 0:01:33]} h6 {[%emt 0:02:35]} 26. g3 {[%emt 0:03:52]} 1/2-1/2